bitfinex-derivatives/quotes_BTCF0:USTF0_20250805
["timestamp","ask_amount","ask_price","bid_price","bid_amount"]
[1754403605687,0.2924611,113680.0,113670.0,0.73556]
[1754403606281,0.84064369,113680.0,113670.0,0.73556]
[1754403606686,0.175962,113660.0,113650.0,13.2287722]
[1754403606988,0.292492,113660.0,113650.0,13.9622922]
[1754403607488,0.292492,113660.0,113650.0,13.9623322]
[1754403607683,0.292492,113660.0,113650.0,13.2287722]
[1754403607991,0.292492,113660.0,113650.0,13.9623322]
[1754403608189,0.292492,113660.0,113650.0,13.9643322]
[1754403608380,0.206052,113660.0,113650.0,13.9643322]
[1754403608582,0.260632,113660.0,113650.0,13.9643322]
[1754403608885,0.292492,113660.0,113650.0,13.9643322]
[1754403609384,0.206052,113660.0,113650.0,13.9643322]
[1754403609788,0.206052,113660.0,113650.0,13.9633322]
[1754403610088,0.175962,113660.0,113650.0,13.9633322]
[1754403610281,0.206052,113660.0,113650.0,13.9633322]
[1754403610885,0.260632,113660.0,113650.0,13.9633322]
[1754403611185,0.292492,113660.0,113650.0,13.875384]
[1754403612083,0.292492,113660.0,113650.0,13.69942]
[1754403612289,0.292492,113660.0,113650.0,12.96582]
[1754403612290,0.84067459,113660.0,113650.0,12.96582]
[1754403612590,0.292492,113660.0,113650.0,13.69942]
[1754403613489,0.31408475,113660.0,113650.0,13.69942]
[1754403613884,0.31408475,113660.0,113650.0,13.69842]
[1754403614082,0.31608475,113660.0,113650.0,13.69842]
[1754403615386,0.86426734,113660.0,113650.0,13.69842]
[1754403615879,0.31608475,113660.0,113650.0,13.69842]
[1754403618185,0.22964475,113660.0,113650.0,13.69842]
[1754403618387,0.28422475,113660.0,113650.0,13.69842]
[1754403618887,0.28422475,113660.0,113650.0,13.8743976]
[1754403619394,0.28422475,113660.0,113650.0,13.69842]
[1754403620093,0.28422475,113660.0,113650.0,13.8743976]
[1754403620386,0.28422475,113660.0,113650.0,13.1407976]
[1754403620584,0.19955475,113660.0,113650.0,14.42242019]
[1754403620791,0.22964475,113660.0,113650.0,13.8742376]
[1754403621587,0.31608475,113660.0,113650.0,13.69826]
[1754403621787,0.39440475,113660.0,113650.0,13.69826]
[1754403621984,0.94258734,113660.0,113650.0,13.6983]
[1754403622188,0.39440475,113660.0,113650.0,13.8742776]
[1754403623291,0.39440475,113660.0,113650.0,13.6983]
[1754403624096,0.39440475,113660.0,113650.0,13.8742776]
[1754403624297,0.36254475,113660.0,113650.0,13.8742776]
[1754403624598,0.35872475,113660.0,113650.0,13.6983]
[1754403624794,0.39440475,113660.0,113650.0,13.69814]
[1754403625601,0.94258734,113660.0,113650.0,12.96482]
[1754403625789,0.94258734,113660.0,113650.0,13.6981]
[1754403626598,0.94258734,113660.0,113650.0,13.69806]
[1754403626791,0.39440475,113660.0,113650.0,12.96482]
[1754403626996,0.39440475,113660.0,113650.0,13.69802]
[1754403627999,0.39340475,113660.0,113650.0,13.69802]
[1754403628203,0.23064475,113660.0,113650.0,13.69802]
[1754403628403,0.22964475,113660.0,113650.0,13.69802]
[1754403628604,0.28422475,113660.0,113650.0,13.69802]
[1754403628804,0.28222475,113660.0,113650.0,13.8739976]
[1754403629104,0.28222475,113660.0,113650.0,13.69802]
[1754403629299,0.94058734,113660.0,113650.0,13.6979]
[1754403629903,0.39240475,113660.0,113650.0,13.6979]
[1754403630500,0.94058734,113660.0,113650.0,12.96482]
[1754403630705,0.4155538,113660.0,113650.0,12.96482]
[1754403630908,0.96373639,113660.0,113650.0,13.69782]
[1754403631402,2.26068996,113660.0,113650.0,12.8307428]
[1754403632199,2.26068996,113660.0,113650.0,12.6903052]
[1754403632399,2.26168996,113660.0,113650.0,12.46033132]
[1754403632604,2.36003906,113660.0,113650.0,11.85232912]
[1754403632804,2.36003906,113660.0,113650.0,11.25510342]
[1754403633005,3.05432165,113660.0,113650.0,9.55729216]
[1754403633299,3.05432165,113660.0,113650.0,8.17268571]
[1754403633507,3.05432165,113660.0,113650.0,7.72977187]
[1754403633710,3.05432165,113660.0,113650.0,7.46818113]
[1754403634007,3.13972165,113660.0,113650.0,5.97718965]
[1754403634203,2.59153906,113660.0,113650.0,5.34823965]
[1754403634401,2.59153906,113660.0,113650.0,4.32010965]
[1754403634603,2.59153906,113660.0,113650.0,4.19781435]
[1754403635104,2.59129906,113660.0,113650.0,4.08307105]
[1754403635301,3.13948165,113660.0,113650.0,1.85525148]
[1754403635503,3.13948165,113660.0,113650.0,1.51109358]
[1754403635707,2.59129906,113660.0,113650.0,1.29226282]
[1754403635908,2.59129906,113660.0,113650.0,1.03412702]
[1754403636110,2.44519906,113660.0,113650.0,0.90042452]
[1754403636414,1.89701647,113660.0,113650.0,0.80409563]
[1754403636609,2.44519906,113660.0,113650.0,0.73209503]
[1754403636915,2.44519906,113660.0,113600.0,0.68466449]
[1754403636916,0.4401325,113610.0,113540.0,0.11052464]
[1754403637103,0.4401325,113610.0,113540.0,0.06879084]
[1754403637104,0.72431489,113550.0,113540.0,0.06879084]
[1754403637309,0.9088123,113550.0,113540.0,0.03166]
[1754403637607,0.05328557,113550.0,113540.0,0.61386259]
[1754403637805,1.7201962,113540.0,113530.0,0.06568]
[1754403638003,1.6761565,113540.0,113530.0,0.06568]
[1754403638209,0.1761944,113510.0,113500.0,4e-05]
[1754403638414,0.2645544,113510.0,113500.0,0.06572]
[1754403638611,1.10141117,113510.0,113500.0,0.0317]
[1754403638811,0.1762403,113480.0,113470.0,0.07150192]
[1754403639108,0.79404777,113480.0,113470.0,0.12567192]
[1754403639516,0.24586518,113480.0,113470.0,0.12567192]
[1754403639713,0.24586518,113480.0,113470.0,0.67385451]
[1754403639909,0.21281518,113480.0,113470.0,0.67385451]
[1754403640105,0.06696,113490.0,113480.0,0.08279]
[1754403640313,0.2872496,113490.0,113480.0,0.08279]
[1754403640511,0.43236117,113490.0,113480.0,0.05417]
[1754403640712,0.43236117,113490.0,113480.0,0.08279]
[1754403640914,0.38156229,113490.0,113480.0,0.08279]
[1754403641316,0.35729072,113490.0,113480.0,0.08279]
[1754403641511,0.16122265,113490.0,113480.0,0.2590301]
[1754403641713,0.002,113510.0,113500.0,0.176209]
[1754403642016,1.7083805,113540.0,113520.0,0.2202096]
[1754403642206,1.5,113540.0,113530.0,0.72434499]
[1754403642713,0.32662108,113580.0,113530.0,1.57252518]
[1754403642913,0.09470928,113590.0,113570.0,0.54818259]
[1754403643115,0.27077168,113600.0,113570.0,0.73268]
[1754403643312,0.09470928,113600.0,113580.0,0.54818259]
[1754403643510,0.03223,113600.0,113580.0,0.1760814]
[1754403643817,0.06247928,113610.0,113590.0,0.54818259]
[1754403644017,0.06247928,113610.0,113600.0,0.54818259]
[1754403644413,0.06247928,113610.0,113600.0,1.27241908]
[1754403644620,0.06247928,113620.0,113610.0,0.1760384]
[1754403644808,0.06247928,113620.0,113610.0,1.45461618]
[1754403645119,0.06247928,113620.0,113610.0,1.54263398]
[1754403645618,0.13007951,113640.0,113620.0,0.2200286]
[1754403645817,0.06160564,113630.0,113620.0,0.2200286]
[1754403646319,0.06160564,113630.0,113620.0,0.5200286]
[1754403646615,0.06160564,113640.0,113630.0,0.1760074]
[1754403646821,0.06160564,113650.0,113640.0,0.1759918]
[1754403647314,0.03223,113650.0,113640.0,0.1759918]
[1754403647513,0.03223,113640.0,113630.0,0.1760068]
[1754403647716,0.3064497,113640.0,113620.0,0.778643]
[1754403647916,0.03223,113630.0,113620.0,0.73464]
[1754403648119,0.2968472,113630.0,113620.0,0.002]
[1754403648414,0.03223,113600.0,113570.0,1.21828]
[1754403648616,0.2523228,113590.0,113570.0,1.2623028]
[1754403648812,0.03223,113580.0,113570.0,0.7326]
[1754403649013,0.03223,113570.0,113560.0,0.75059987]
[1754403649215,0.2523642,113570.0,113540.0,0.0880693]
[1754403649515,0.2523749,113560.0,113540.0,0.9526095]
[1754403649719,0.03223,113560.0,113550.0,0.1761313]
[1754403650513,0.08861,113590.0,113570.0,0.0440248]
[1754403650821,0.2646637,113600.0,113590.0,0.1760582]
[1754403651123,0.2082992,113590.0,113580.0,0.2200945]
[1754403651415,0.2646947,113580.0,113570.0,0.2201251]
[1754403652017,0.2969247,113580.0,113570.0,0.2201251]
[1754403652417,0.2969247,113580.0,113570.0,0.1761002]
[1754403653018,0.12084,113580.0,113560.0,0.088054]
[1754403653322,2.34267798,113570.0,113560.0,0.1761056]
[1754403653522,1.7969402,113570.0,113560.0,0.1761056]
[1754403653825,1.62084,113570.0,113560.0,0.1761056]
[1754403654217,1.58646,113570.0,113560.0,0.1761056]
[1754403654417,1.53223,113570.0,113560.0,0.1761056]
[1754403654621,1.53423,113570.0,113560.0,0.1761056]
[1754403654819,1.58443,113570.0,113560.0,0.1761056]
[1754403656019,1.5522,113570.0,113560.0,0.4761056]
[1754403656222,1.5522,113570.0,113560.0,0.4771056]
[1754403656429,0.0522,113570.0,113560.0,0.4771056]
[1754403656923,0.0512,113570.0,113560.0,0.4771056]
[1754403657116,1e-07,113570.0,113560.0,0.4771056]
[1754403657522,1e-07,113570.0,113560.0,0.6532176]
[1754403657719,0.0493484,113580.0,113570.0,0.1761006]
[1754403657919,0.0011427,113580.0,113570.0,1.45403838]
[1754403658124,0.3526612,113620.0,113610.0,0.1760386]
[1754403658321,0.11231608,113620.0,113610.0,0.1760386]
[1754403658629,0.14454608,113620.0,113610.0,0.1760386]
[1754403658922,0.05593608,113620.0,113610.0,0.1760386]
[1754403659122,0.02370608,113620.0,113610.0,1.75389638]
[1754403660326,0.46222119,113620.0,113600.0,0.0880213]
[1754403660529,0.84261638,113610.0,113600.0,0.2200584]
[1754403660728,0.2968941,113600.0,113590.0,0.3081067]
[1754403661030,0.32060018,113600.0,113590.0,0.3081067]
[1754403661428,0.14454608,113600.0,113590.0,0.3081067]
[1754403661625,0.05593608,113600.0,113590.0,0.3081067]
[1754403661930,0.10542608,113600.0,113590.0,0.4179367]
[1754403662130,0.05596409,113600.0,113590.0,0.4518267]
[1754403662521,0.10545409,113600.0,113590.0,0.4169367]
[1754403663331,0.05596409,113600.0,113590.0,0.4508267]
[1754403663528,0.05696409,113600.0,113590.0,0.4508267]
[1754403663728,0.05696409,113600.0,113590.0,0.4169367]
[1754403664128,0.05596409,113600.0,113590.0,0.4169367]
[1754403664329,0.02373409,113600.0,113590.0,0.99756448]
[1754403664632,9e-08,113600.0,113590.0,1.47362848]
[1754403664828,0.04656,113620.0,113610.0,0.3187587]
[1754403665221,0.10817946,113620.0,113610.0,0.3187587]
[1754403665426,0.10817946,113620.0,113610.0,0.2848687]
[1754403665427,0.04656,113620.0,113610.0,0.2848687]
[1754403665727,0.15727,113620.0,113610.0,0.2848687]
[1754403665928,0.15727,113620.0,113610.0,0.1760387]
[1754403666432,0.3333241,113600.0,113590.0,0.2641024]
[1754403666624,0.3333241,113600.0,113590.0,0.1760696]
[1754403666826,1.45707211,113600.0,113590.0,0.1760696]
[1754403667025,1.45707211,113600.0,113590.0,0.1770696]
[1754403667225,1.61477218,113600.0,113590.0,0.1770696]
[1754403667629,1.71501218,113600.0,113590.0,0.1770696]
[1754403667829,1.1692744,113600.0,113590.0,0.1760696]
[1754403668027,1.71701218,113600.0,113590.0,0.1760696]
[1754403668836,0.26251,113600.0,113590.0,0.1760696]
[1754403669237,0.26251,113600.0,113590.0,0.2272296]
[1754403669429,0.26251,113600.0,113590.0,0.2848996]
[1754403669730,0.1498,113600.0,113590.0,0.2848996]
[1754403669934,0.1498,113600.0,113590.0,0.3187896]
[1754403670127,0.2714,113600.0,113590.0,0.2848996]
[1754403670335,0.38211,113600.0,113590.0,0.2848996]
[1754403670538,0.38211,113600.0,113590.0,0.1760696]
[1754403671040,0.2694,113600.0,113590.0,0.3187896]
[1754403671235,0.2704,113600.0,113590.0,0.3187896]
[1754403671427,0.22384,113600.0,113590.0,0.3187896]
[1754403671940,0.22184,113600.0,113590.0,0.3187896]
[1754403672239,0.22284,113600.0,113590.0,0.3187896]
[1754403672744,0.22284,113600.0,113590.0,0.3197896]
[1754403672943,0.2694,113600.0,113590.0,0.3197896]
[1754403673240,0.5561641,113600.0,113590.0,0.1770696]
[1754403673433,1.16352134,113600.0,113590.0,0.001]
[1754403673632,1.10190188,113600.0,113590.0,0.001]
[1754403673833,0.4213925,113590.0,113570.0,0.1320699]
[1754403674139,0.43977242,113590.0,113580.0,0.1760851]
[1754403674438,0.46541546,113590.0,113580.0,0.1760851]
[1754403674635,0.2255752,113580.0,113570.0,0.3081592]
[1754403674835,0.2255752,113580.0,113570.0,0.2201123]
[1754403674836,0.3333552,113580.0,113570.0,0.2201123]
[1754403675236,0.3333707,113570.0,113560.0,0.3081905]
[1754403675437,0.15727,113570.0,113560.0,0.3081905]
[1754403675732,0.15727,113570.0,113560.0,0.4161605]
[1754403676840,0.11974516,113570.0,113560.0,0.4181605]
[1754403677035,0.07025516,113570.0,113560.0,0.4181605]
[1754403677236,0.02369516,113570.0,113560.0,0.4530505]
[1754403677442,0.07025516,113570.0,113560.0,0.4530505]
[1754403677639,0.07125516,113570.0,113560.0,0.4510505]
[1754403677842,0.07125516,113570.0,113560.0,0.4540505]
[1754403678137,0.02469516,113570.0,113560.0,0.99978828]
[1754403678339,0.02469516,113570.0,113560.0,0.99778828]
[1754403678539,0.02469516,113570.0,113560.0,1.72866828]
[1754403678739,0.13925516,113570.0,113560.0,1.72866828]
[1754403679138,0.18481516,113570.0,113560.0,1.1829305]
[1754403679339,0.47162576,113570.0,113560.0,0.1771044]
[1754403679536,0.1761161,113560.0,113550.0,4e-05]
[1754403679729,0.18096516,113560.0,113550.0,4e-05]
[1754403680141,0.18096516,113560.0,113550.0,0.1761713]
[1754403680437,0.18096516,113560.0,113550.0,0.2273313]
[1754403680644,0.35708086,113560.0,113550.0,0.0512]
[1754403681036,0.35708086,113560.0,113550.0,4e-05]
[1754403681443,0.44514391,113560.0,113550.0,0.00104]
[1754403682037,0.62127191,113560.0,113550.0,4e-05]
[1754403682233,0.2642382,113540.0,113520.0,0.9508476]
[1754403682438,0.1761779,113520.0,113510.0,0.3210903]
[1754403682644,0.2373979,113520.0,113510.0,0.2841602]
[1754403682837,0.2373979,113520.0,113510.0,0.2273502]
[1754403682838,0.08485095,113520.0,113510.0,0.2273502]
[1754403683149,0.18090095,113520.0,113510.0,0.2273502]
[1754403683834,0.35807885,113520.0,113510.0,0.2273502]
[1754403684144,0.18190095,113520.0,113510.0,0.2841602]
[1754403684346,0.12068095,113520.0,113510.0,0.2841602]
[1754403684545,0.07119095,113520.0,113510.0,0.3190502]
[1754403684733,0.02463095,113520.0,113510.0,0.3190502]
[1754403684939,0.02463095,113520.0,113510.0,0.86478798]
[1754403685138,0.02463095,113520.0,113510.0,1.0494502]
[1754403685439,0.001,113520.0,113510.0,1.0494502]
[1754403686043,0.09705,113520.0,113510.0,1.0145602]
[1754403686439,0.09705,113520.0,113510.0,0.2841602]
[1754403686942,0.3334634,113510.0,113500.0,4e-05]
[1754403687142,0.3569619,113510.0,113500.0,0.13708576]
[1754403687444,0.0700585,113510.0,113500.0,0.24505576]
[1754403687743,0.15908045,113510.0,113500.0,0.27994576]
[1754403687945,0.15908045,113510.0,113500.0,0.24505576]
[1754403688148,0.11252045,113510.0,113500.0,0.27994576]
[1754403688338,0.08904,113510.0,113500.0,0.27994576]
[1754403688547,0.08904,113510.0,113500.0,0.28094576]
[1754403689246,0.08904,113510.0,113500.0,0.27994576]
[1754403689434,0.1356,113510.0,113500.0,0.27994576]
[1754403689639,0.24631,113510.0,113500.0,0.24505576]
[1754403689836,0.44597338,113510.0,113500.0,0.13708576]
[1754403690141,0.1762089,113500.0,113490.0,0.3595309]
[1754403690343,0.3334789,113500.0,113490.0,0.2202617]
[1754403690541,0.15727,113490.0,113480.0,0.264345]
[1754403691144,0.15727,113490.0,113480.0,0.315505]
[1754403692148,0.3334945,113490.0,113480.0,0.315505]
[1754403692345,0.15727,113490.0,113480.0,0.316505]
[1754403692650,0.3334945,113490.0,113480.0,0.265345]
[1754403692850,0.15727,113490.0,113480.0,0.265345]
[1754403693147,0.15727,113490.0,113480.0,0.407775]
[1754403693348,0.2881724,113500.0,113490.0,0.1762244]
[1754403693349,0.11196,113500.0,113490.0,0.1762244]
[1754403693648,0.16,113500.0,113490.0,0.3186544]
[1754403693848,0.16,113500.0,113490.0,0.1762244]
[1754403693849,0.4906489,113500.0,113490.0,0.1762244]
[1754403694048,0.33785902,113500.0,113490.0,0.1762244]
[1754403694347,0.42597639,113500.0,113490.0,0.1762244]
[1754403694652,0.29377902,113500.0,113490.0,0.2629244]
[1754403695247,0.27036,113500.0,113490.0,0.2629244]
[1754403695444,0.29376512,113500.0,113490.0,0.2629244]
[1754403695650,0.06788,113500.0,113490.0,0.89928218]
[1754403695849,0.0420787,113500.0,113490.0,0.89928218]
[1754403696048,0.0115272,113500.0,113490.0,0.89928218]
[1754403696348,0.1174676,113520.0,113510.0,0.3535134]
[1754403696549,0.04804,113520.0,113510.0,0.3535134]
[1754403696948,0.15444,113540.0,113530.0,0.1761624]
[1754403697148,0.059,113560.0,113550.0,0.1761313]
[1754403697343,0.35396983,113560.0,113550.0,0.1761313]
[1754403697547,0.31397259,113560.0,113550.0,0.1761313]
[1754403697948,1.21968839,113560.0,113550.0,0.1761313]
[1754403698150,0.49008839,113560.0,113550.0,0.1761313]
[1754403698344,0.22589403,113560.0,113550.0,0.1761313]
[1754403698550,0.22589403,113560.0,113550.0,0.2628313]
[1754403698748,0.40200983,113560.0,113550.0,0.1761313]
[1754403699251,0.088071,113550.0,113530.0,0.0880766]
[1754403699445,0.088071,113550.0,113530.0,0.2642248]
[1754403699446,0.3786269,113540.0,113530.0,0.2642248]
[1754403699646,0.40193589,113540.0,113530.0,0.2642248]
[1754403699843,0.40193589,113540.0,113530.0,0.1761482]
[1754403700247,0.40193589,113540.0,113520.0,0.2202127]
[1754403700248,0.3786424,113530.0,113520.0,0.2202127]
[1754403700444,0.40195139,113530.0,113520.0,0.2202127]
[1754403700654,0.22578899,113530.0,113520.0,0.2202127]
[1754403701056,0.22578899,113530.0,113520.0,0.3069127]
[1754403701349,0.22578899,113530.0,113520.0,0.2202127]
[1754403701748,0.22578899,113530.0,113520.0,0.3626427]
[1754403701948,0.16678899,113530.0,113520.0,0.3626427]
[1754403702145,0.34495159,113530.0,113520.0,0.3626427]
[1754403702345,0.40495159,113530.0,113520.0,0.2202127]
[1754403702544,0.22878899,113530.0,113520.0,0.2202127]
[1754403702849,0.22878899,113530.0,113510.0,0.3083236]
[1754403702850,0.2832181,113520.0,113510.0,0.3083236]
[1754403703051,0.22578899,113520.0,113510.0,0.2202274]
[1754403703251,0.40196709,113520.0,113510.0,0.2202274]
[1754403704156,0.4964648,113520.0,113510.0,0.2202274]
[1754403704455,0.9726568,113520.0,113510.0,0.1761793]
[1754403705050,0.76075088,113520.0,113510.0,0.1761793]
[1754403705354,1.06075088,113520.0,113510.0,0.1761793]
[1754403705561,1.06175088,113520.0,113510.0,0.1761793]
[1754403705858,1.17319088,113520.0,113510.0,0.1761793]
[1754403706059,0.87319088,113520.0,113510.0,0.1761793]
[1754403706253,0.1761937,113510.0,113500.0,0.3083517]
[1754403706450,1.67636047,113510.0,113500.0,0.3083517]
[1754403706858,1.58826085,113510.0,113500.0,0.3083517]
[1754403707358,1.76445455,113510.0,113500.0,0.3083517]
[1754403707561,1.58826085,113510.0,113500.0,0.3083517]
[1754403708254,1.59026085,113510.0,113500.0,0.3083517]
[1754403708559,1.04552307,113510.0,113500.0,0.3083517]
[1754403708861,1.17516307,113510.0,113500.0,0.3083517]
[1754403709661,0.20398899,113510.0,113500.0,0.4507817]
[1754403709862,0.20398899,113510.0,113500.0,0.4856717]
[1754403710162,0.15594899,113510.0,113500.0,1.03140948]
[1754403710354,0.08680549,113510.0,113500.0,1.03140948]
[1754403710549,0.01836619,113510.0,113500.0,0.7856717]
[1754403710859,0.01836619,113510.0,113500.0,0.4856717]
[1754403711256,0.06540619,113510.0,113500.0,0.4856717]
[1754403711454,0.06540619,113510.0,113500.0,0.4866717]
[1754403711650,0.06540619,113510.0,113500.0,0.4876717]
[1754403711957,0.04804,113510.0,113500.0,0.4527817]
[1754403712258,0.3787202,113480.0,113470.0,0.00582192]
[1754403712557,1.1260002,113480.0,113470.0,0.00582192]
[1754403712861,1.21906904,113480.0,113470.0,0.00582192]
[1754403713160,1.58856662,113480.0,113470.0,0.18207752]
[1754403713459,1.68528825,113480.0,113470.0,0.18207752]
[1754403713956,1.78451757,113480.0,113470.0,0.00782192]
[1754403714151,1.60827827,113480.0,113470.0,0.18407672]
[1754403714352,1.68528745,113480.0,113470.0,0.09952192]
[1754403714552,1.74857528,113480.0,113470.0,0.01082192]
[1754403714759,1.29684584,113480.0,113470.0,0.01082192]
[1754403714963,1.74857518,113480.0,113470.0,0.00582192]
[1754403715356,1.84258352,113480.0,113470.0,0.00582192]
[1754403715664,1.78029569,113480.0,113470.0,0.00582192]
[1754403715861,2.04466883,113480.0,113470.0,0.00582192]
[1754403716366,2.10895666,113480.0,113470.0,0.00582192]
[1754403716865,2.04666883,113480.0,113470.0,0.00582192]
[1754403717155,2.04666883,113480.0,113430.0,0.05685]
[1754403717156,0.0440716,113450.0,113430.0,0.05685]
[1754403717356,0.20248,113440.0,113430.0,0.3198671]
[1754403717560,0.04804,113440.0,113430.0,0.3547571]
[1754403717865,0.24364281,113460.0,113450.0,0.319836]
[1754403718055,0.04804,113470.0,113460.0,0.220338]
[1754403718257,0.27992327,113480.0,113460.0,0.1762676]
[1754403718557,0.56128815,113480.0,113470.0,0.1762549]
[1754403718751,0.3197352,113470.0,113450.0,0.2644152]
[1754403718956,0.14348,113450.0,113440.0,0.3639136]
[1754403719151,0.20248,113450.0,113440.0,0.3639136]
[1754403719858,0.20248,113450.0,113440.0,0.2203636]
[1754403720260,0.14348,113450.0,113440.0,0.3649136]
[1754403720459,0.06227413,113470.0,113460.0,0.3198206]
[1754403720659,0.06227413,113470.0,113460.0,0.3547106]
[1754403720962,0.04804,113470.0,113460.0,0.3547106]
[1754403721360,0.06427413,113480.0,113470.0,0.3696951]
[1754403721864,0.002,113480.0,113470.0,0.3696951]
[1754403722462,0.24097973,113490.0,113480.0,0.3695696]
[1754403722857,0.09008973,113490.0,113480.0,0.3695696]
[1754403723060,0.18276973,113490.0,113480.0,0.3695696]
[1754403723364,0.29061973,113490.0,113480.0,0.1762396]
[1754403723561,0.29061973,113490.0,113480.0,0.3695696]
[1754403723562,0.23240973,113490.0,113480.0,0.3695696]
[1754403723868,0.41941973,113490.0,113480.0,0.3695696]
[1754403724058,0.3571456,113490.0,113480.0,0.3695696]
[1754403725054,0.2062556,113490.0,113480.0,0.3695696]
[1754403725261,0.2082556,113490.0,113480.0,0.3695696]
[1754403725460,0.3009356,113490.0,113480.0,0.3695696]
[1754403726371,0.42121361,113490.0,113480.0,0.3695696]
[1754403727264,0.61346881,113490.0,113480.0,0.19333]
[1754403727465,0.43724471,113490.0,113480.0,0.1762396]
[1754403727663,1.24732396,113490.0,113480.0,0.1762396]
[1754403728165,0.70158618,113490.0,113480.0,0.1762396]
[1754403728374,1.24732396,113490.0,113480.0,0.1762396]
[1754403728556,1.16922485,113490.0,113480.0,0.1762396]
[1754403728756,0.3767696,113480.0,113470.0,0.2203054]
[1754403728962,0.29042555,113480.0,113470.0,0.3056754]
[1754403729260,0.23221555,113480.0,113470.0,0.4136354]
[1754403729464,0.1701356,113480.0,113470.0,0.4136354]
[1754403729968,0.2812556,113480.0,113470.0,0.4136354]
[1754403730462,0.3394656,113480.0,113470.0,0.2203054]
[1754403730663,0.2812556,113480.0,113470.0,0.2203054]
[1754403730970,0.3394656,113480.0,113470.0,0.4136354]
[1754403731167,1.06144328,113480.0,113470.0,0.2203054]
[1754403731464,0.42759073,113480.0,113470.0,0.3671054]
[1754403731773,0.2812556,113480.0,113470.0,0.4136354]
[1754403731968,0.5157055,113480.0,113470.0,0.4136354]
[1754403732166,1.8185754,113470.0,113460.0,0.2643947]
[1754403732366,1.904601,113470.0,113460.0,0.2203277]
[1754403732669,2.45033878,113470.0,113460.0,0.2203277]
[1754403732863,0.1762709,113460.0,113450.0,0.3550177]
[1754403733069,0.02518142,113460.0,113450.0,0.3085006]
[1754403733568,0.40198232,113460.0,113450.0,0.3085006]
[1754403733764,0.40198232,113460.0,113450.0,0.2644292]
[1754403733966,0.07482142,113460.0,113450.0,0.4577592]
[1754403734166,0.02518142,113460.0,113450.0,0.4577592]
[1754403735264,0.02518142,113460.0,113450.0,0.4597592]
[1754403735767,0.16750142,113460.0,113450.0,0.4597592]
[1754403736262,0.16750142,113460.0,113450.0,0.2664292]
[1754403736263,0.85958987,113460.0,113450.0,0.2664292]
[1754403736662,0.31385209,113460.0,113450.0,0.4597592]
[1754403736868,0.02518142,113460.0,113450.0,0.4597992]
[1754403737262,0.16750142,113460.0,113450.0,0.4597992]
[1754403737469,0.22571142,113460.0,113450.0,0.4597992]
[1754403737662,2e-08,113460.0,113450.0,0.4597992]
[1754403737867,0.10848,113470.0,113460.0,0.369601]
[1754403738468,0.2508,113470.0,113460.0,0.369601]
[1754403738674,0.85474778,113470.0,113460.0,0.369601]
[1754403738973,0.30901,113470.0,113460.0,0.179271]
[1754403739276,1.3629583,113470.0,113460.0,0.179271]
[1754403740263,1.45664691,113470.0,113460.0,0.003]
[1754403740468,0.376801,113460.0,113450.0,0.00104]
[1754403740764,0.92253878,113460.0,113450.0,0.1763265]
[1754403740966,0.3768591,113430.0,113420.0,0.1763331]
[1754403741172,1.62267198,113430.0,113410.0,0.1322594]
[1754403741369,0.20053,113420.0,113410.0,0.3525858]
[1754403741569,0.58982318,113420.0,113400.0,0.0441293]
[1754403741773,0.13313,113400.0,113390.0,0.2229098]
[1754403741969,0.09042747,113400.0,113390.0,0.3724198]
[1754403742469,0.14006747,113400.0,113390.0,0.3724198]
[1754403742864,0.14006747,113400.0,113390.0,0.1763798]
[1754403743169,0.20385906,113400.0,113390.0,0.3109898]
[1754403743570,0.07072906,113400.0,113390.0,0.3724198]
[1754403743770,0.92097,113410.0,113400.0,0.2228942]
[1754403743967,0.08349,113410.0,113400.0,0.43573885]
[1754403744167,0.20977,113430.0,113420.0,0.3109431]
[1754403744372,1.2229276,113430.0,113420.0,0.3109431]
[1754403744768,0.4347276,113430.0,113420.0,0.3109431]
[1754403744971,1.2226876,113430.0,113420.0,0.2228631]
[1754403745170,0.1763606,113410.0,113400.0,0.14765645]
[1754403745372,1.39162778,113410.0,113400.0,0.3110593]
[1754403745567,0.70510199,113410.0,113400.0,0.3991393]
[1754403745775,0.00169,113420.0,113410.0,0.1763486]
[1754403745973,1.77409758,113430.0,113420.0,0.3109431]
[1754403746176,1.96338971,113430.0,113420.0,0.3109431]
[1754403746377,1.96338971,113430.0,113420.0,0.04653]
[1754403746568,2.20350021,113430.0,113400.0,0.3991478]
[1754403746769,2.20350021,113430.0,113400.0,0.266977]
[1754403746770,0.0599,113410.0,113400.0,0.266977]
[1754403747083,1.66939328,113410.0,113400.0,0.267977]
[1754403747274,1.66939328,113410.0,113400.0,0.2238942]
[1754403747574,1.66939328,113410.0,113400.0,0.3734042]
[1754403747575,0.08816398,113410.0,113400.0,0.3734042]
[1754403747876,1.56933098,113420.0,113410.0,0.4432153]
[1754403748078,1.56933098,113420.0,113410.0,0.2669631]
[1754403748277,0.0599,113410.0,113400.0,0.4442427]
[1754403748472,0.63916533,113420.0,113410.0,0.1763487]
[1754403748679,1.39279778,113420.0,113410.0,0.1763487]
[1754403748878,1.75820544,113420.0,113410.0,0.2228787]
[1754403749074,0.24897446,113420.0,113410.0,0.3109587]
[1754403749276,1.47118008,113430.0,113420.0,0.3109432]
[1754403749678,1.74840039,113430.0,113420.0,0.3109432]
[1754403749884,1.74840039,113430.0,113420.0,0.2228632]
[1754403750173,1.74840039,113430.0,113420.0,0.1763332]
[1754403750174,1.66025454,113430.0,113420.0,0.1763332]
[1754403750480,1.11371676,113430.0,113420.0,0.3109432]
[1754403750779,0.9179023,113430.0,113420.0,0.3723732]
[1754403751076,0.1336623,113430.0,113420.0,0.3723732]
[1754403751473,0.1935623,113430.0,113420.0,0.3723732]
[1754403751778,0.9784823,113430.0,113420.0,0.3723732]
[1754403752481,1.34338293,113430.0,113420.0,0.2228632]
[1754403752679,1.18765693,113430.0,113420.0,0.2228632]
[1754403752977,1.18765693,113430.0,113420.0,0.3111432]
[1754403753281,1.36145453,113430.0,113420.0,0.3111432]
[1754403753483,1.36145453,113430.0,113420.0,0.2228632]
[1754403753875,1.90719231,113430.0,113420.0,0.04653]
[1754403754071,0.1763332,113420.0,113410.0,0.308592]
[1754403754282,1.36914013,113430.0,113420.0,0.1763332]
[1754403754580,1.83986704,113430.0,113420.0,0.1763332]
[1754403754776,1.89833704,113430.0,113420.0,0.1763332]
[1754403754975,1.98650879,113430.0,113420.0,0.1763332]
[1754403755182,0.65837101,113430.0,113420.0,0.1763332]
[1754403755374,0.1763331,113420.0,113410.0,0.3141973]
[1754403755577,0.2348031,113420.0,113410.0,0.2701126]
[1754403755884,0.0790391,113420.0,113410.0,0.2701126]
[1754403756071,0.34353618,113420.0,113410.0,0.2701126]
[1754403756381,1.76190129,113420.0,113410.0,0.2701126]
[1754403756578,1.21616351,113420.0,113410.0,0.2204226]
[1754403756877,1.88634129,113420.0,113410.0,0.1763388]
[1754403757077,0.93044819,113420.0,113410.0,0.1763388]